bitfinex-derivatives/quotes_BTCF0:USTF0_20220102
["timestamp","ask_amount","ask_price","bid_price","bid_amount"]
[1641106709322,0.187,47135.0,47130.0,0.60236363]
[1641106710020,0.187,47135.0,47129.0,0.84404941]
[1641106710223,0.84198002,47134.0,47127.0,0.84404941]
[1641106711021,0.84198002,47134.0,47128.0,0.96479675]
[1641106711221,1.01098002,47134.0,47128.0,0.96479675]
[1641106711823,1.01098002,47134.0,47127.0,1.80884616]
[1641106711824,0.169,47134.0,47127.0,1.80884616]
[1641106712425,0.169,47134.0,47128.0,1.80884616]
[1641106712623,0.84198002,47135.0,47128.0,1.80884616]
[1641106713023,0.84198002,47136.0,47129.0,0.96479675]
[1641106713223,0.169,47135.0,47129.0,0.96479675]
[1641106714724,0.84198002,47136.0,47129.0,1.80884616]
[1641106715227,1.00998002,47136.0,47129.0,1.80884616]
[1641106715424,1.00998002,47136.0,47130.0,0.96479675]
[1641106716025,0.168,47136.0,47130.0,1.80884616]
[1641106716624,1.02198002,47137.0,47130.0,1.80884616]
[1641106716825,0.18,47137.0,47131.0,0.96479675]
[1641106717225,0.98231569,47138.0,47131.0,0.96479675]
[1641106717426,0.84198002,47136.0,47129.0,0.84404941]
[1641106718227,0.84198002,47136.0,47130.0,1.56706807]
[1641106719226,1.02298002,47136.0,47130.0,1.56706807]
[1641106719426,1.02298002,47136.0,47132.0,0.36139542]
[1641106719627,0.001,47133.0,47132.0,0.36139542]
[1641106719826,0.33410931,47133.0,47130.0,1.56706807]
[1641106720027,0.18,47131.0,47130.0,0.6023256]
[1641106720431,0.14033567,47131.0,47130.0,0.6023256]
[1641106721329,0.33533567,47131.0,47130.0,0.6023256]
[1641106721728,0.33533567,47131.0,47126.0,0.6023256]
[1641106722331,0.33533567,47131.0,47125.0,0.84404941]
[1641106722529,0.14033567,47131.0,47130.0,0.84404941]
[1641106723129,0.14033567,47131.0,47129.0,0.0665]
[1641106723329,0.28233567,47131.0,47129.0,0.0665]
[1641106723528,0.28233567,47131.0,47129.0,1.26078968]
[1641106724528,1.32287262,47134.0,47130.0,1.19428968]
[1641106725129,1.56540341,47144.0,47133.0,1.19428968]
[1641106725130,0.02122083,47135.0,47133.0,1.19428968]
[1641106725329,0.168,47134.0,47133.0,1.19428968]
[1641106725930,0.168,47134.0,47130.0,2.28035765]
[1641106726832,0.02122083,47135.0,47131.0,1.31553247]
[1641106727431,0.19122083,47135.0,47131.0,1.31553247]
[1641106728231,0.19122083,47135.0,47134.0,0.60248894]
[1641106728631,0.02122083,47135.0,47134.0,0.60248894]
[1641106729531,0.78517257,47135.0,47134.0,0.60248894]
[1641106730035,0.18422083,47135.0,47132.0,0.60248894]
[1641106730637,0.02122083,47135.0,47132.0,0.60248894]
[1641106731035,0.02122083,47135.0,47134.0,0.36150924]
[1641106731434,0.18522083,47135.0,47134.0,0.36150924]
[1641106732735,0.02122083,47135.0,47134.0,0.36150924]
[1641106733435,0.18422083,47135.0,47134.0,0.36150924]
[1641106734639,0.02122083,47135.0,47134.0,0.36150924]
[1641106735340,0.18422083,47135.0,47134.0,0.36150924]
[1641106736645,0.02122083,47135.0,47134.0,0.36150924]
[1641106737044,0.02122083,47135.0,47133.0,0.36150924]
[1641106737343,0.18422083,47135.0,47133.0,0.36150924]
[1641106738145,0.18422083,47135.0,47134.0,0.36150924]
[1641106738646,0.02122083,47135.0,47134.0,0.36150924]
[1641106739344,1.02483457,47135.0,47134.0,0.36150924]
[1641106740446,1.00361374,47135.0,47134.0,0.36150924]
[1641106740646,0.84061374,47135.0,47134.0,0.36150924]
[1641106741358,1.00961374,47135.0,47134.0,0.36150924]
[1641106741959,1.00961374,47135.0,47133.0,0.36150924]
[1641106741960,0.169,47135.0,47133.0,0.36150924]
[1641106742658,0.16155543,47138.0,47133.0,0.36150924]
[1641106743360,0.33055543,47138.0,47133.0,0.36150924]
[1641106743662,0.84055477,47135.0,47134.0,0.36150924]
[1641106744861,0.16155543,47138.0,47133.0,0.36150924]
[1641106745262,0.16155543,47138.0,47134.0,0.36150924]
[1641106745463,0.34455543,47138.0,47134.0,0.36150924]
[1641106746765,0.16155543,47138.0,47134.0,0.36150924]
[1641106746970,0.16155543,47138.0,47133.0,0.36150924]
[1641106747368,0.34555543,47138.0,47134.0,0.169]
[1641106747568,0.34555543,47138.0,47134.0,0.53050924]
[1641106748667,0.16155543,47138.0,47134.0,0.36150924]
[1641106749369,0.34555543,47138.0,47134.0,0.53050924]
[1641106749570,0.34555543,47138.0,47134.0,0.169]
[1641106749769,0.34555543,47138.0,47135.0,0.84348452]
[1641106749971,1.32287262,47136.0,47135.0,0.84348452]
[1641106750872,1.48442805,47138.0,47133.0,0.84348452]
[1641106751372,1.67642805,47138.0,47133.0,0.84348452]
[1641106751571,1.67642805,47138.0,47136.0,0.36168483]
[1641106751771,1.32287262,47137.0,47136.0,0.36168483]
[1641106752574,1.32287262,47137.0,47135.0,0.36168483]
[1641106753373,1.51587262,47137.0,47135.0,0.36168483]
[1641106754775,1.51587262,47137.0,47136.0,0.36168483]
[1641106756175,1.51587262,47137.0,47136.0,0.42385483]
[1641106756378,0.10071394,47146.0,47136.0,0.42385483]
[1641106756379,0.02121552,47147.0,47136.0,0.61364883]
[1641106756576,0.02121552,47147.0,47140.0,0.18]
[1641106756776,1.9,47156.0,47146.0,0.18]
[1641106756977,1.82620539,47159.0,47150.0,0.18]
[1641106757377,0.02121072,47158.0,47150.0,0.18]
[1641106758880,0.02121072,47158.0,47147.0,0.18]
[1641106759078,0.02121072,47158.0,47148.0,0.36168483]
[1641106759978,0.02121072,47158.0,47154.0,0.18]
[1641106760981,0.16154639,47158.0,47154.0,0.18]
[1641106761280,0.16154639,47158.0,47149.0,0.36168483]
[1641106761485,0.16154639,47158.0,47154.0,0.193]
[1641106762782,0.16154639,47158.0,47151.0,0.36168483]
[1641106763382,0.16154639,47158.0,47151.0,0.55468483]
[1641106763785,0.02121072,47158.0,47151.0,0.55468483]
[1641106764786,0.02121072,47158.0,47151.0,0.36168483]
[1641106765284,0.16154639,47158.0,47151.0,0.36168483]
[1641106765484,0.16154639,47158.0,47151.0,0.55468483]
[1641106766587,0.16154639,47158.0,47151.0,0.193]
[1641106766786,0.16154639,47158.0,47150.0,0.36168483]
[1641106767414,0.16154639,47158.0,47150.0,0.55468483]
[1641106768889,0.16154639,47158.0,47150.0,0.36168483]
[1641106769492,0.16154639,47158.0,47150.0,0.55368483]
[1641106770088,0.16154639,47158.0,47150.0,0.192]
[1641106770890,0.16154639,47158.0,47149.0,0.36168483]
[1641106771591,0.16154639,47158.0,47149.0,0.55368483]
[1641106772792,0.16154639,47158.0,47149.0,0.36168483]
[1641106772993,0.16154639,47158.0,47148.0,0.14033567]
[1641106773491,0.16154639,47158.0,47148.0,0.33133567]
[1641106773893,0.16154639,47158.0,47148.0,0.51133567]
[1641106774094,0.16154639,47158.0,47148.0,0.33133567]
[1641106774296,0.16154639,47158.0,47148.0,0.51133567]
[1641106775010,0.16154639,47158.0,47148.0,0.32033567]
[1641106775308,0.16154639,47158.0,47148.0,0.14033567]
[1641106775510,0.16154639,47158.0,47148.0,0.6930205]
[1641106775711,0.16154639,47158.0,47148.0,0.8730205]
[1641106776010,0.02121246,47154.0,47148.0,0.6930205]
[1641106776209,0.18,47151.0,47148.0,0.55268483]
[1641106776410,0.02121632,47149.0,47148.0,0.55268483]
[1641106776811,0.02121632,47149.0,47148.0,0.36168483]
[1641106777010,0.02221632,47149.0,47148.0,0.36168483]
[1641106777414,0.02221632,47149.0,47143.0,0.14033567]
[1641106777610,0.20121632,47149.0,47148.0,0.183]
[1641106777812,0.20221632,47149.0,47148.0,0.183]
[1641106778909,0.02221632,47149.0,47143.0,0.14033567]
[1641106779110,0.02121632,47149.0,47143.0,0.14033567]
[1641106779508,0.08921632,47149.0,47143.0,0.33133567]
[1641106779710,0.18,47148.0,47143.0,0.33133567]
[1641106779913,0.24065,47148.0,47143.0,0.33133567]
[1641106780911,0.06065,47148.0,47143.0,0.14033567]
[1641106781611,0.06065,47148.0,47143.0,0.32933567]
[1641106782711,0.02121632,47149.0,47143.0,0.32933567]
[1641106783011,0.02121632,47149.0,47143.0,0.14033567]
[1641106783611,0.02121632,47149.0,47143.0,0.32933567]
[1641106784813,0.02121632,47149.0,47143.0,0.14033567]
[1641106785712,0.02121632,47149.0,47143.0,0.32933567]
[1641106787012,0.02121632,47149.0,47143.0,0.14033567]
[1641106787515,0.02121632,47149.0,47143.0,0.32933567]
[1641106788915,0.02121632,47149.0,47143.0,0.14033567]
[1641106789517,0.02121632,47149.0,47143.0,0.32933567]
[1641106790917,0.02121632,47149.0,47143.0,0.14033567]
[1641106791516,0.02121632,47149.0,47143.0,0.32933567]
[1641106793018,0.02121632,47149.0,47143.0,0.14033567]
[1641106793619,0.02121632,47149.0,47143.0,0.33033567]
[1641106795019,0.0808163,47148.0,47143.0,0.14033567]
[1641106795621,0.0808163,47148.0,47143.0,0.33333567]
[1641106795822,1.30571643,47146.0,47143.0,0.33333567]
[1641106796423,0.08697078,47144.0,47143.0,0.33333567]
[1641106796922,0.08697078,47144.0,47143.0,0.14033567]
[1641106797726,0.08697078,47144.0,47143.0,0.193]
[1641106798224,0.28818911,47144.0,47140.0,0.36168483]
[1641106798424,0.18,47141.0,47140.0,0.36168483]
[1641106798625,0.26295,47141.0,47140.0,0.36168483]
[1641106799525,0.45195,47141.0,47140.0,0.36168483]
[1641106799725,1.8980021,47141.0,47135.0,0.36168483]
[1641106800125,0.05303047,47140.0,47135.0,0.36168483]
[1641106800330,0.001,47136.0,47135.0,0.36168483]
[1641106801629,0.196,47136.0,47135.0,0.36168483]
[1641106801828,0.196,47136.0,47134.0,0.36168483]
[1641106802030,0.001,47135.0,47134.0,0.36168483]
[1641106802629,1.30671643,47135.0,47134.0,0.60199545]
[1641106803630,1.48871643,47135.0,47134.0,0.60199545]
[1641106804330,1.48871643,47135.0,47132.0,0.84348452]
[1641106804531,0.02222226,47133.0,47132.0,0.84348452]
[1641106805731,0.21322226,47133.0,47132.0,0.84348452]
[1641106805934,0.35355793,47133.0,47132.0,0.84348452]
[1641106806431,1.65927436,47133.0,47130.0,0.84348452]
[1641106806632,0.001,47131.0,47130.0,0.84348452]
[1641106807433,0.001,47131.0,47128.0,1.20506905]
[1641106807632,0.193,47131.0,47124.0,0.14033567]
[1641106809034,0.16155793,47133.0,47124.0,0.14033567]
[1641106809634,0.34255793,47133.0,47124.0,0.14033567]
[1641106811035,0.16155793,47133.0,47124.0,0.14033567]
[1641106811635,0.34855793,47133.0,47124.0,0.14033567]
[1641106812036,0.02122418,47128.0,47124.0,0.14033567]
[1641106813641,0.20622418,47128.0,47124.0,0.14033567]
[1641106814040,0.16371653,47127.0,47124.0,0.14033567]
[1641106815645,0.34771653,47127.0,47124.0,0.14033567]
[1641106817142,0.001,47125.0,47124.0,0.14033567]
[1641106817642,0.19,47125.0,47124.0,0.14033567]
[1641106818743,0.189,47125.0,47124.0,0.14033567]
[1641106818944,0.189,47125.0,47124.0,0.00787187]
[1641106819143,0.02122594,47125.0,47121.0,0.02]
[1641106819746,0.20722594,47125.0,47121.0,0.02]
[1641106819944,0.001,47122.0,47121.0,0.02]
[1641106821446,0.02222744,47122.0,47121.0,0.02]
[1641106821647,0.37,47122.0,47121.0,0.02]
[1641106821848,0.39122896,47122.0,47121.0,0.02]
[1641106822247,0.39122896,47122.0,47115.0,0.36121889]
[1641106822547,1.292,47119.0,47115.0,0.36121889]
[1641106822746,1.36944,47119.0,47115.0,0.36121889]
[1641106823147,0.09799448,47118.0,47115.0,0.36121889]
[1641106823747,1.40199448,47118.0,47111.0,0.36121889]
[1641106824150,0.14033567,47112.0,47111.0,0.36121889]
[1641106824647,0.14133567,47112.0,47111.0,0.36121889]
[1641106824848,0.14133567,47112.0,47109.0,0.96322383]
[1641106825048,0.001,47110.0,47109.0,0.36121889]
[1641106825649,0.185,47110.0,47103.0,0.189794]
[1641106825849,0.185,47110.0,47109.0,1.32439755]
[1641106826851,0.185,47110.0,47108.0,1.32439755]
[1641106827051,0.02123316,47109.0,47108.0,1.32439755]
[1641106827252,0.001,47109.0,47108.0,1.32439755]
[1641106827451,0.42453819,47111.0,47108.0,1.32439755]
[1641106827651,0.191,47109.0,47108.0,1.32439755]
[1641106827851,0.21223502,47109.0,47108.0,1.32439755]
[1641106828051,0.21223502,47109.0,47107.0,1.32439755]
[1641106828253,0.191,47109.0,47107.0,1.32439755]
[1641106828764,0.001,47108.0,47107.0,1.32439755]
[1641106828955,0.001,47108.0,47106.0,1.32439755]
[1641106829153,0.02123502,47107.0,47106.0,1.32439755]
[1641106829554,0.191,47109.0,47106.0,1.32439755]
[1641106829756,0.183,47107.0,47106.0,1.32439755]
[1641106830556,0.183,47107.0,47104.0,0.18]
[1641106830557,0.183,47107.0,47103.0,1.44480201]
[1641106830957,0.0212351,47104.0,47103.0,1.44480201]
[1641106831168,0.1031351,47104.0,47103.0,1.44480201]
[1641106831771,0.2911351,47104.0,47103.0,1.44480201]
[1641106832170,0.43147077,47104.0,47102.0,1.32728558]
[1641106833072,0.24347077,47104.0,47102.0,1.32728558]
[1641106833271,0.24347077,47104.0,47099.0,0.009794]
[1641106833670,0.43047077,47104.0,47099.0,0.009794]
[1641106835774,0.42847077,47104.0,47099.0,0.009794]
[1641106835975,0.185,47104.0,47103.0,0.18]
[1641106836174,0.14033567,47112.0,47103.0,0.27297]
[1641106836175,0.16156714,47112.0,47103.0,0.27297]
[1641106836379,0.16156714,47112.0,47108.0,0.18]
[1641106836577,0.14033567,47112.0,47108.0,0.18]
[1641106836777,0.14033567,47115.0,47111.0,0.18]
[1641106837378,0.14033567,47115.0,47107.0,0.18]
[1641106837779,0.14033567,47115.0,47111.0,0.191]
[1641106838279,0.02122841,47118.0,47111.0,0.191]
[1641106838882,0.42448914,47116.0,47111.0,0.191]
[1641106839079,0.42448914,47116.0,47109.0,0.14033567]
[1641106839681,0.42448914,47116.0,47109.0,0.33633567]
[1641106841183,0.42448914,47116.0,47109.0,0.14033567]
[1641106841786,0.42448914,47116.0,47109.0,0.33733567]
[1641106843389,0.44571872,47116.0,47109.0,0.33733567]
[1641106843791,0.44571872,47116.0,47109.0,0.33533567]
[1641106844891,0.44571872,47116.0,47109.0,0.14033567]
[1641106845792,0.44571872,47116.0,47109.0,0.33433567]
[1641106846391,0.58605439,47116.0,47109.0,0.33433567]
[1641106846792,0.02123114,47112.0,47109.0,0.33433567]
[1641106846992,0.02123305,47110.0,47109.0,0.33433567]
[1641106847192,0.02123305,47110.0,47109.0,0.14033567]
[1641106847893,0.02123305,47110.0,47109.0,0.191]
[1641106848395,0.16156872,47110.0,47109.0,0.191]
[1641106849293,0.16156872,47110.0,47103.0,0.009794]
[1641106849696,0.16156872,47110.0,47103.0,0.201794]
[1641106850496,0.14033567,47110.0,47104.0,0.18]
[1641106850896,0.14033567,47110.0,47103.0,0.201794]
[1641106851095,0.14033567,47110.0,47103.0,0.009794]
[1641106851697,0.14033567,47110.0,47103.0,0.202794]
[1641106852095,0.14033567,47110.0,47106.0,1.44480201]
[1641106852496,0.14033567,47110.0,47109.0,1.32713872]
[1641106853297,0.14033567,47110.0,47106.0,1.44480201]
[1641106853697,0.14033567,47110.0,47106.0,1.64080201]
[1641106853897,0.14033567,47110.0,47106.0,1.82080201]
[1641106854098,0.14033567,47110.0,47107.0,1.44480201]
[1641106854301,0.18693679,47115.0,47107.0,1.44480201]
[1641106854500,0.02123123,47112.0,47107.0,1.44480201]
[1641106854903,0.1615669,47112.0,47108.0,1.44480201]
[1641106855500,0.1615669,47112.0,47110.0,1.3271243]
[1641106856301,0.1615669,47112.0,47109.0,1.3271243]
[1641106857102,0.1615669,47112.0,47109.0,2.2923059]
[1641106857505,0.1615669,47112.0,47111.0,0.60279164]
[1641106859706,0.1615669,47112.0,47111.0,0.79479164]
[1641106860808,0.1615669,47112.0,47111.0,0.192]
[1641106861206,0.1615669,47112.0,47110.0,0.36169249]
[1641106861807,0.1615669,47112.0,47110.0,0.55369249]
[1641106862208,0.1615669,47112.0,47111.0,0.36169249]
[1641106863211,0.1615669,47112.0,47110.0,0.36169249]
[1641106863614,0.1615669,47112.0,47111.0,0.36169249]
[1641106865814,0.1615669,47112.0,47111.0,0.55169249]
[1641106866013,0.02123123,47112.0,47111.0,0.55169249]
[1641106866916,0.02123123,47112.0,47111.0,0.19]
[1641106867214,0.02123123,47112.0,47111.0,1.80911556]
[1641106867713,0.02123123,47112.0,47111.0,2.00511556]
[1641106867914,0.02123123,47112.0,47111.0,1.03990829]
[1641106868417,0.02123123,47112.0,47111.0,2.00511556]
[1641106869217,0.02123123,47112.0,47111.0,1.80911556]
[1641106869618,0.02123123,47112.0,47111.0,0.60278957]
[1641106869819,0.02123123,47112.0,47111.0,0.79678957]
[1641106871219,0.02123123,47112.0,47110.0,0.60278957]
[1641106871919,0.02123123,47112.0,47111.0,0.60278957]
[1641106872542,0.02123123,47112.0,47111.0,1.5679918]
[1641106872736,0.60449092,47116.0,47111.0,1.5679918]
[1641106872938,0.02123244,47112.0,47111.0,1.5679918]
[1641106873136,0.42449092,47116.0,47111.0,0.60278957]
[1641106873336,0.42449092,47116.0,47110.0,0.60278957]
[1641106873738,0.42449092,47116.0,47110.0,0.79478957]
[1641106873947,0.42449092,47116.0,47113.0,0.3616764]
[1641106874840,0.02123204,47114.0,47113.0,0.3616764]
[1641106875042,0.02123204,47114.0,47112.0,0.3616764]
[1641106875740,0.02123204,47114.0,47112.0,0.5546764]
[1641106876642,1.53649092,47116.0,47112.0,0.5546764]
[1641106877042,0.02123276,47113.0,47112.0,0.193]
[1641106877242,0.02123276,47113.0,47111.0,0.3616764]
[1641106877444,0.06286845,47110.0,47108.0,0.84390829]
[1641106877746,0.181,47109.0,47108.0,0.84390829]
[1641106877943,0.181,47109.0,47108.0,1.20558327]
[1641106878745,1.50795329,47109.0,47104.0,1.20558327]
[1641106878944,0.14033567,47105.0,47104.0,1.20558327]
[1641106879443,1.32695329,47109.0,47104.0,1.20558327]
[1641106879644,1.30571643,47108.0,47104.0,0.08972]
[1641106879844,1.30571643,47108.0,47104.0,0.28772]
[1641106880248,1.30571643,47112.0,47106.0,0.18]
[1641106880445,1.32694789,47112.0,47106.0,1.20558327]
[1641106880645,1.30571643,47112.0,47107.0,0.18]
[1641106880846,1.30571643,47112.0,47106.0,1.20558327]
[1641106881047,0.14033567,47108.0,47106.0,1.20558327]
[1641106881247,0.14033567,47108.0,47107.0,1.20558327]
[1641106881846,0.14033567,47108.0,47107.0,1.39658327]
[1641106883147,0.14033567,47108.0,47107.0,1.20558327]
[1641106883648,0.14033567,47108.0,47104.0,1.5071243]
[1641106883848,0.14033567,47108.0,47107.0,0.192]
[1641106885049,0.14033567,47108.0,47107.0,1.39827357]
[1641106885249,0.14033567,47108.0,47107.0,1.20627357]
[1641106885850,0.14033567,47108.0,47107.0,1.39727357]
[1641106886049,0.14033567,47108.0,47107.0,0.191]
[1641106887151,0.14033567,47108.0,47106.0,1.20627357]
[1641106887953,0.14033567,47108.0,47106.0,1.39827357]
[1641106889253,0.14033567,47108.0,47106.0,1.20627357]
[1641106889553,0.14033567,47108.0,47107.0,1.20627357]
[1641106891357,0.14033567,47108.0,47104.0,1.3271243]
[1641106891857,0.14033567,47108.0,47104.0,1.5231243]
[1641106892058,0.14033567,47108.0,47107.0,1.20625788]
[1641106893856,0.14033567,47108.0,47107.0,1.40125788]
[1641106895158,0.14033567,47108.0,47107.0,1.20625788]
[1641106895360,0.14033567,47108.0,47107.0,2.1715049]
[1641106895762,0.14033567,47108.0,47104.0,1.5071243]
[1641106895960,0.14033567,47108.0,47107.0,0.194]
[1641106896562,0.14033567,47108.0,47107.0,1.40024327]
[1641106896961,0.14033567,47108.0,47107.0,2.36549029]
[1641106897261,0.14033567,47108.0,47107.0,2.17149029]
[1641106897961,0.14033567,47108.0,47107.0,2.36349029]
[1641106898364,0.14033567,47108.0,47107.0,1.39824327]
[1641106898864,0.14033567,47108.0,47107.0,2.36349029]
[1641106899264,0.14033567,47108.0,47107.0,2.17149029]
[1641106899564,0.96535548,47108.0,47107.0,2.17149029]
[1641106899764,0.96535548,47108.0,47107.0,0.96524702]
[1641106899963,0.96535548,47108.0,47107.0,1.16124702]
[1641106900163,0.14033567,47108.0,47107.0,2.36749029]
[1641106900664,0.14033567,47108.0,47107.0,1.16124702]
[1641106901270,0.14033567,47108.0,47107.0,0.96524702]
[1641106901868,0.96535548,47108.0,47107.0,0.195]
[1641106902867,0.14033567,47108.0,47107.0,1.16024702]
[1641106903068,0.14033567,47108.0,47107.0,2.36649029]
[1641106903267,0.14033567,47108.0,47107.0,2.17149029]
[1641106903467,0.96728402,47108.0,47107.0,2.17149029]
[1641106903870,0.96728402,47108.0,47107.0,2.36649029]
[1641106904068,0.96728402,47108.0,47107.0,1.40124327]
[1641106904769,0.96728402,47108.0,47107.0,2.36649029]
[1641106904970,1.30571643,47114.0,47107.0,2.36649029]
[1641106905171,0.06637662,47117.0,47113.0,0.18]
[1641106905370,0.06637662,47117.0,47116.0,0.18]
[1641106905570,0.1569661,47120.0,47116.0,0.18]
[1641106905571,0.06637662,47119.0,47116.0,0.37866567]
[1641106905969,0.06637662,47119.0,47116.0,0.56566567]
[1641106906388,0.02122576,47124.0,47116.0,0.56566567]
[1641106906587,0.02122576,47124.0,47117.0,0.96524702]
[1641106906785,0.02122576,47124.0,47117.0,2.17138816]
[1641106907788,0.02122576,47124.0,47123.0,0.36183678]
[1641106907988,0.02222576,47124.0,47123.0,0.36183678]
[1641106908185,0.20222576,47124.0,47123.0,0.36183678]
[1641106908990,0.20222576,47124.0,47122.0,0.96489808]
[1641106909288,0.001,47123.0,47122.0,0.36183678]
[1641106909888,0.06259699,47122.0,47117.0,1.20614114]
[1641106910088,0.001,47118.0,47116.0,0.14033567]
[1641106910290,0.001,47117.0,47116.0,0.14033567]
[1641106911688,0.001,47117.0,47115.0,0.6030613]
[1641106911889,0.001,47116.0,47115.0,0.6030613]
[1641106912693,0.001,47116.0,47115.0,1.56825262]
[1641106913292,0.001,47116.0,47115.0,0.6030613]
[1641106913492,0.001,47116.0,47114.0,0.74339697]
[1641106913691,0.001,47115.0,47114.0,0.74339697]
[1641106914793,0.001,47115.0,47114.0,1.70859314]
[1641106915293,0.02223059,47115.0,47114.0,1.70859314]
[1641106915493,0.02123059,47115.0,47114.0,1.70859314]
[1641106915694,1.75641717,47120.0,47114.0,1.70859314]
[1641106915893,0.02122842,47118.0,47114.0,1.90259314]
[1641106916098,0.02122842,47118.0,47117.0,0.6030613]
[1641106917395,0.02122842,47118.0,47115.0,0.96519617]
[1641106917596,0.02122842,47118.0,47116.0,1.20614114]
[1641106918295,0.02122713,47121.0,47117.0,0.06]
[1641106918496,0.02122713,47121.0,47117.0,0.18]
[1641106919499,0.02122713,47121.0,47119.0,0.84431374]
[1641106919699,0.001,47120.0,47119.0,0.84431374]
[1641106919898,0.001,47120.0,47119.0,1.03531374]
[1641106921199,0.001,47120.0,47119.0,0.84431374]
[1641106921904,0.001,47120.0,47119.0,1.03631374]
[1641106922202,0.001,47120.0,47119.0,0.192]
[1641106922504,0.001,47120.0,47119.0,1.15719617]
[1641106923205,0.001,47120.0,47119.0,0.96519617]
[1641106924005,0.001,47120.0,47119.0,1.15719617]
[1641106925009,0.001,47120.0,47119.0,2.00151055]
[1641106925508,0.001,47120.0,47119.0,1.80951055]
[1641106925910,0.001,47120.0,47119.0,0.96519617]
[1641106926108,0.001,47120.0,47119.0,1.16119617]
[1641106927411,0.001,47120.0,47119.0,0.96519617]
[1641106928011,0.001,47120.0,47119.0,1.16119617]
[1641106928311,0.001,47120.0,47119.0,0.196]
[1641106929113,0.001,47120.0,47119.0,1.16119617]
[1641106929413,0.001,47120.0,47119.0,0.96519617]
[1641106929615,0.001,47120.0,47118.0,1.20614114]
[1641106929814,1.30194376,47123.0,47118.0,1.20614114]
[1641106930019,1.30194376,47123.0,47119.0,0.196]
[1641106930216,0.001,47120.0,47119.0,0.196]
[1641106931416,0.001,47120.0,47115.0,0.36136888]
[1641106931616,0.02122522,47125.0,47115.0,0.36136888]
[1641106931816,0.02122522,47125.0,47118.0,0.18]
[1641106932016,0.02122522,47125.0,47115.0,0.55736888]
[1641106932321,0.02122522,47125.0,47118.0,0.18]
[1641106933036,0.02122522,47125.0,47118.0,0.24324]
[1641106934036,0.02122522,47125.0,47118.0,0.43924]
[1641106935441,0.02122522,47125.0,47118.0,0.24324]
[1641106936041,0.02122522,47125.0,47119.0,0.009794]
[1641106936244,0.14033567,47129.0,47121.0,0.18]
[1641106938142,0.14033567,47129.0,47121.0,0.376]
[1641106939449,0.14033567,47129.0,47121.0,0.18]
[1641106940251,0.14033567,47129.0,47121.0,0.194]
[1641106941360,0.14033567,47129.0,47119.0,0.55116288]
[1641106941951,0.14033567,47129.0,47124.0,0.18]
[1641106943151,0.02122326,47130.0,47124.0,0.18]
[1641106943357,0.02122326,47130.0,47121.0,0.36136888]
[1641106944054,0.14033567,47129.0,47121.0,0.55636888]
[1641106945455,0.14033567,47129.0,47121.0,0.36136888]
[1641106946056,0.14033567,47129.0,47121.0,0.55836888]
[1641106946359,0.14033567,47129.0,47121.0,0.197]
[1641106946957,0.14033567,47129.0,47128.0,0.36136888]
[1641106947158,0.14133567,47129.0,47128.0,0.36136888]
[1641106947859,0.14033567,47129.0,47128.0,0.36136888]
[1641106948058,0.14033567,47129.0,47128.0,0.55536888]
[1641106949364,0.14033567,47129.0,47126.0,0.60228147]
[1641106949659,0.14033567,47129.0,47127.0,0.60228147]
[1641106950861,0.14033567,47129.0,47128.0,0.60228147]
[1641106951463,0.14033567,47129.0,47127.0,1.56720799]
[1641106952064,0.14033567,47129.0,47127.0,0.79628147]
[1641106953467,0.14033567,47129.0,47128.0,1.56717524]
[1641106954173,0.14033567,47129.0,47128.0,1.76117524]
[1641106954570,0.14033567,47129.0,47128.0,0.194]
[1641106955473,0.14033567,47129.0,47127.0,0.60228147]
[1641106955671,0.14033567,47129.0,47124.0,1.20614114]
[1641106955672,0.14033567,47129.0,47124.0,0.36150513]
[1641106956072,0.14033567,47129.0,47127.0,0.196]
[1641106957480,0.14033567,47129.0,47124.0,0.36150513]
[1641106957876,0.14033567,47129.0,47124.0,0.54150513]
[1641106958081,0.14033567,47129.0,47124.0,0.73850513]
[1641106958578,0.14033567,47129.0,47124.0,0.55850513]
[1641106959394,0.14033567,47129.0,47124.0,0.36150513]
[1641106960089,0.14033567,47129.0,47124.0,0.55750513]
[1641106960990,0.14033567,47129.0,47124.0,0.196]
[1641106961390,0.14033567,47129.0,47123.0,0.36150513]
[1641106961791,0.14033567,47129.0,47122.0,0.36150513]
[1641106962191,0.14033567,47129.0,47123.0,0.196]
[1641106963392,0.14033567,47129.0,47122.0,0.36150513]
[1641106964193,0.14033567,47129.0,47122.0,0.55350513]
[1641106965399,0.14033567,47129.0,47122.0,0.36150513]
[1641106966095,0.14033567,47129.0,47122.0,0.55350513]
[1641106967498,0.02122326,47130.0,47122.0,0.36150513]
[1641106968201,0.02122326,47130.0,47122.0,0.55450513]
[1641106968601,0.14033567,47129.0,47122.0,0.55450513]
[1641106969501,0.14033567,47129.0,47122.0,0.36150513]
[1641106970102,0.14033567,47129.0,47122.0,0.55350513]
[1641106970805,0.14033567,47129.0,47122.0,0.192]
[1641106971502,0.14033567,47129.0,47121.0,0.36150513]
[1641106972104,0.14033567,47129.0,47121.0,0.55550513]
[1641106973409,0.14033567,47129.0,47121.0,0.36150513]
[1641106974108,0.14033567,47129.0,47121.0,0.55450513]
[1641106974309,0.14033567,47129.0,47121.0,0.193]
[1641106974510,1.32213494,47130.0,47121.0,0.193]
[1641106975210,0.14033567,47129.0,47121.0,0.193]
[1641106975410,0.14033567,47129.0,47120.0,0.36150513]
[1641106975712,1.41854653,47128.0,47125.0,0.36150513]
[1641106976111,1.41854653,47128.0,47125.0,0.55450513]
[1641106976712,1.5588822,47129.0,47125.0,0.55450513]
[1641106977412,1.5588822,47129.0,47126.0,0.36150513]
[1641106978213,1.5588822,47129.0,47126.0,0.54950513]
[1641106978618,0.14033567,47129.0,47126.0,0.54950513]
[1641106978814,0.14033567,47129.0,47126.0,0.188]
[1641106979414,0.14033567,47129.0,47124.0,0.36150513]
[1641106979615,0.14033567,47129.0,47123.0,0.36150513]
[1641106980214,0.14033567,47129.0,47123.0,0.55350513]
[1641106981318,0.14033567,47129.0,47124.0,0.36150513]
[1641106982118,0.14033567,47129.0,47124.0,0.55350513]
[1641106983625,0.14033567,47129.0,47124.0,0.36150513]
[1641106984123,0.14033567,47129.0,47124.0,0.55350513]
[1641106985428,0.14033567,47129.0,47124.0,0.36150513]
[1641106986228,0.14033567,47129.0,47124.0,0.54950513]
[1641106987326,0.14033567,47129.0,47125.0,0.36150513]
[1641106987929,0.14033567,47129.0,47124.0,0.36150513]
[1641106988126,0.14033567,47129.0,47125.0,0.19]
[1641106989431,0.14033567,47129.0,47124.0,0.36150513]
[1641106990335,0.14033567,47129.0,47124.0,0.55550513]
[1641106991538,1.44197461,47129.0,47124.0,0.55550513]
[1641106992035,1.44197461,47129.0,47124.0,0.36150513]